[Event "Titled Tuesday Blitz August 23 Late 2022"]
[White "Aghasiyev, Kamal"]
[Black "Al Hosani, Omran"]
[WhiteFideId "13402854"]
[BlackFideId "9308733"]
[WhiteElo "2210"]
[BlackElo "2236"]
[Result "1-0"]
[Round "05"]
[TimeControl "180+1"]
[Date "2022.08.23"]
[WhiteClock "0:00:45"]
[BlackClock "0:00:04"]

1. d4 {[%clk 0:03:00]}  Nf6 {[%clk 0:02:59]} 2. c4 {[%clk 0:03:00]}  e6 {[%clk 0:02:59]} 3. Nf3 {[%clk 0:02:59]}  d5 {[%clk 0:02:58]} 4. Nc3 {[%clk 0:02:56]}  Be7 {[%clk 0:02:57]} 5. cxd5 {[%clk 0:02:56]}  exd5 {[%clk 0:02:58]} 6. Bg5 {[%clk 0:02:57]}  O-O {[%clk 0:02:58]} 7. e3 {[%clk 0:02:57]}  c6 {[%clk 0:02:59]} 8. Bd3 {[%clk 0:02:57]}  Nbd7 {[%clk 0:02:53]} 9. Qc2 {[%clk 0:02:57]}  Re8 {[%clk 0:02:52]} 10. h3 {[%clk 0:02:56]}  h6 {[%clk 0:02:41]} 11. Bf4 {[%clk 0:02:55]}  Nf8 {[%clk 0:02:40]} 12. O-O {[%clk 0:02:54]}  Bd6 {[%clk 0:02:39]} 13. Bxd6 {[%clk 0:02:48]}  Qxd6 {[%clk 0:02:30]} 14. Ne5 {[%clk 0:02:49]}  a6 {[%clk 0:02:27]} 15. Rad1 {[%clk 0:02:45]}  N6d7 {[%clk 0:01:54]} 16. f4 {[%clk 0:02:40]}  f6 {[%clk 0:01:55]} 17. Rf3 {[%clk 0:02:12]}  fxe5 {[%clk 0:01:54]} 18. fxe5 {[%clk 0:02:13]}  Nxe5 {[%clk 0:01:43]} 19. dxe5 {[%clk 0:02:12]}  Qxe5 {[%clk 0:01:44]} 20. Rdf1 {[%clk 0:02:07]}  Be6 {[%clk 0:01:43]} 21. Ne2 {[%clk 0:02:06]}  Nd7 {[%clk 0:01:15]} 22. Bh7+ {[%clk 0:02:04]}  Kh8 {[%clk 0:01:13]} 23. Bg6 {[%clk 0:02:00]}  Rf8 {[%clk 0:01:04]} 24. Nf4 {[%clk 0:01:59]}  Qd6 {[%clk 0:00:48]} 25. Bh5 {[%clk 0:01:31]}  Ne5 {[%clk 0:00:47]} 26. Rg3 {[%clk 0:01:27]}  Bf5 {[%clk 0:00:43]} 27. Qc3 {[%clk 0:01:26]}  Be4 {[%clk 0:00:34]} 28. b4 {[%clk 0:01:17]}  Rf6 {[%clk 0:00:33]} 29. Bf3 {[%clk 0:01:02]}  Bxf3 {[%clk 0:00:30]} 30. gxf3 {[%clk 0:01:01]}  Re8 {[%clk 0:00:13]} 31. Kh1 {[%clk 0:00:59]}  Ng6 {[%clk 0:00:11]} 32. Nh5 {[%clk 0:00:52]}  Qxg3 {[%clk 0:00:10]} 33. Nxg3 {[%clk 0:00:51]}  Rfe6 {[%clk 0:00:04]} 34. Nf5 {[%clk 0:00:50]}  Re5 {[%clk 0:00:03]} 35. Nxg7 {[%clk 0:00:48]}  R8e7 {[%clk 0:00:02]} 36. Nf5 {[%clk 0:00:48]}  Rf7 {[%clk 0:00:02]} 37. Nxh6 {[%clk 0:00:47]}  Rh7 {[%clk 0:00:03]} 38. Ng4 {[%clk 0:00:45]}  Rxh3+ {[%clk 0:00:03]} 39. Kg2 {[%clk 0:00:45]}  Rh5 {[%clk 0:00:04]} 40. Nxe5 {[%clk 0:00:45]}  Nxe5 {[%clk 0:00:04]} 41. f4 {[%clk 0:00:45]} 1-0


[Site "https://www.chess.com"]

[Event "Titled Tuesday Blitz August 23 Late 2022"]
[White "Beerdsen, Thomas"]
[Black "Xiong, Jeffery"]
[WhiteFideId "1030108"]
[BlackFideId "2047640"]
[WhiteElo "2567"]
[BlackElo "2714"]
[Result "0-1"]
[Round "05"]
[TimeControl "180+1"]
[Date "2022.08.23"]
[WhiteClock "0:01:33"]
[BlackClock "0:02:07"]

1. e4 {[%clk 0:03:00]}  e5 {[%clk 0:03:00]} 2. Nf3 {[%clk 0:03:00]}  Nc6 {[%clk 0:02:59]} 3. Bc4 {[%clk 0:03:00]}  Bc5 {[%clk 0:02:59]} 4. c3 {[%clk 0:02:58]}  Nf6 {[%clk 0:03:00]} 5. d3 {[%clk 0:02:59]}  d6 {[%clk 0:02:59]} 6. O-O {[%clk 0:02:58]}  h6 {[%clk 0:02:59]} 7. Nbd2 {[%clk 0:02:57]}  O-O {[%clk 0:03:00]} 8. h3 {[%clk 0:02:57]}  a5 {[%clk 0:03:00]} 9. Bb3 {[%clk 0:02:53]}  Be6 {[%clk 0:02:59]} 10. Re1 {[%clk 0:02:52]}  Bxb3 {[%clk 0:02:58]} 11. Qxb3 {[%clk 0:02:50]}  a4 {[%clk 0:02:56]} 12. Qc2 {[%clk 0:02:48]}  Re8 {[%clk 0:02:53]} 13. b4 {[%clk 0:02:48]}  axb3 {[%clk 0:02:52]} 14. Nxb3 {[%clk 0:02:46]}  Bb6 {[%clk 0:02:53]} 15. Bb2 {[%clk 0:02:41]}  Qd7 {[%clk 0:02:50]} 16. Re2 {[%clk 0:02:35]}  Nh5 {[%clk 0:02:50]} 17. Bc1 {[%clk 0:02:34]}  Ne7 {[%clk 0:02:46]} 18. d4 {[%clk 0:02:32]}  Ng6 {[%clk 0:02:46]} 19. Kh2 {[%clk 0:02:26]}  Nhf4 {[%clk 0:02:46]} 20. Bxf4 {[%clk 0:02:26]}  Nxf4 {[%clk 0:02:46]} 21. Re3 {[%clk 0:02:27]}  Qe6 {[%clk 0:02:45]} 22. Ng1 {[%clk 0:02:07]}  Ra3 {[%clk 0:02:36]} 23. g3 {[%clk 0:02:06]}  Ng6 {[%clk 0:02:37]} 24. Ne2 {[%clk 0:02:02]}  Rea8 {[%clk 0:02:36]} 25. Kg2 {[%clk 0:01:54]}  Qc4 {[%clk 0:02:09]} 26. Nd2 {[%clk 0:01:40]}  Qa6 {[%clk 0:02:09]} 27. Rf3 {[%clk 0:01:33]}  Qxe2 {[%clk 0:02:07]} 0-1


[Site "https://www.chess.com"]

[Event "Titled Tuesday Blitz August 23 Late 2022"]
[White "Carlsen, Magnus"]
[Black "Dubov, Daniil"]
[WhiteFideId "1503014"]
[BlackFideId "24126055"]
[WhiteElo "2830"]
[BlackElo "2791"]
[Result "1-0"]
[Round "05"]
[TimeControl "180+1"]
[Date "2022.08.23"]
[WhiteClock "0:00:28"]
[BlackClock "0:00:02"]

1. e4 {[%clk 0:02:41]}  e5 {[%clk 0:02:42]} 2. Nf3 {[%clk 0:02:41]}  Nc6 {[%clk 0:02:43]} 3. Nc3 {[%clk 0:02:41]}  Nf6 {[%clk 0:02:43]} 4. g3 {[%clk 0:02:41]}  Nxe4 {[%clk 0:02:40]} 5. Nxe4 {[%clk 0:02:40]}  d5 {[%clk 0:02:41]} 6. Nc3 {[%clk 0:02:40]}  d4 {[%clk 0:02:41]} 7. Bg2 {[%clk 0:02:41]}  dxc3 {[%clk 0:02:41]} 8. bxc3 {[%clk 0:02:42]}  Bd6 {[%clk 0:02:38]} 9. O-O {[%clk 0:02:40]}  O-O {[%clk 0:02:38]} 10. Re1 {[%clk 0:02:41]}  h6 {[%clk 0:02:37]} 11. d3 {[%clk 0:02:30]}  Bg4 {[%clk 0:02:21]} 12. h3 {[%clk 0:02:27]}  Bh5 {[%clk 0:02:21]} 13. Rb1 {[%clk 0:02:27]}  Rb8 {[%clk 0:02:14]} 14. g4 {[%clk 0:02:05]}  Bg6 {[%clk 0:02:13]} 15. g5 {[%clk 0:02:05]}  Bh5 {[%clk 0:01:35]} 16. gxh6 {[%clk 0:01:58]}  f5 {[%clk 0:01:33]} 17. Qd2 {[%clk 0:01:45]}  Bxf3 {[%clk 0:01:18]} 18. Bxf3 {[%clk 0:01:37]}  e4 {[%clk 0:01:07]} 19. Bg2 {[%clk 0:01:26]}  Ne5 {[%clk 0:01:06]} 20. Qg5 {[%clk 0:01:18]}  Qxg5 {[%clk 0:01:02]} 21. Bxg5 {[%clk 0:01:18]}  gxh6 {[%clk 0:00:40]} 22. Bxh6 {[%clk 0:01:17]}  Rf6 {[%clk 0:00:40]} 23. Bg5 {[%clk 0:01:02]}  Rg6 {[%clk 0:00:39]} 24. h4 {[%clk 0:01:03]}  Nf7 {[%clk 0:00:25]} 25. dxe4 {[%clk 0:00:54]}  Nxg5 {[%clk 0:00:25]} 26. hxg5 {[%clk 0:00:55]}  fxe4 {[%clk 0:00:22]} 27. Rb5 {[%clk 0:00:53]}  Bf4 {[%clk 0:00:03]} 28. Rxe4 {[%clk 0:00:43]}  Rf8 {[%clk 0:00:03]} 29. Re7 {[%clk 0:00:31]}  b6 {[%clk 0:00:02]} 30. Be4 {[%clk 0:00:28]} 1-0


[Site "https://www.chess.com"]

[Event "Titled Tuesday Blitz August 23 Late 2022"]
[White "Caruana, Fabiano"]
[Black "Makarian, Rudik"]
[WhiteFideId "2020009"]
[BlackFideId "44105681"]
[WhiteElo "2847"]
[BlackElo "2403"]
[Result "1-0"]
[Round "05"]
[TimeControl "180+1"]
[Date "2022.08.23"]
[WhiteClock "0:00:21"]
[BlackClock "0:00:01"]

1. d4 {[%clk 0:03:00]}  Nf6 {[%clk 0:02:59]} 2. c4 {[%clk 0:03:01]}  g6 {[%clk 0:03:00]} 3. Nf3 {[%clk 0:03:00]}  Bg7 {[%clk 0:03:00]} 4. e3 {[%clk 0:03:01]}  O-O {[%clk 0:02:58]} 5. Be2 {[%clk 0:03:01]}  d6 {[%clk 0:02:58]} 6. O-O {[%clk 0:03:01]}  c5 {[%clk 0:02:59]} 7. d5 {[%clk 0:03:01]}  e5 {[%clk 0:02:58]} 8. Nc3 {[%clk 0:03:00]}  Ne8 {[%clk 0:02:56]} 9. e4 {[%clk 0:02:58]}  h6 {[%clk 0:02:57]} 10. Ne1 {[%clk 0:02:56]}  Qe7 {[%clk 0:02:51]} 11. Nd3 {[%clk 0:02:56]}  f5 {[%clk 0:02:48]} 12. f3 {[%clk 0:02:56]}  f4 {[%clk 0:02:41]} 13. b4 {[%clk 0:02:57]}  cxb4 {[%clk 0:02:22]} 14. Nxb4 {[%clk 0:02:58]}  Nd7 {[%clk 0:02:23]} 15. a4 {[%clk 0:02:56]}  Nc5 {[%clk 0:02:22]} 16. a5 {[%clk 0:02:55]}  Nc7 {[%clk 0:01:59]} 17. Ba3 {[%clk 0:02:52]}  g5 {[%clk 0:01:45]} 18. Nd3 {[%clk 0:02:52]}  N7a6 {[%clk 0:01:38]} 19. Nxc5 {[%clk 0:02:50]}  dxc5 {[%clk 0:01:30]} 20. Rb1 {[%clk 0:02:47]}  Kh7 {[%clk 0:01:28]} 21. Qd2 {[%clk 0:02:38]}  Rf6 {[%clk 0:01:26]} 22. Na4 {[%clk 0:02:36]}  Bf8 {[%clk 0:01:23]} 23. Rb5 {[%clk 0:02:31]}  Qc7 {[%clk 0:01:14]} 24. Rfb1 {[%clk 0:02:31]}  Rb8 {[%clk 0:01:13]} 25. Nc3 {[%clk 0:02:01]}  Nb4 {[%clk 0:01:02]} 26. Na2 {[%clk 0:01:52]}  Bd7 {[%clk 0:00:53]} 27. R5xb4 {[%clk 0:01:25]}  cxb4 {[%clk 0:00:53]} 28. Bxb4 {[%clk 0:01:25]}  Bc5+ {[%clk 0:00:52]} 29. Kh1 {[%clk 0:01:25]}  b6 {[%clk 0:00:43]} 30. a6 {[%clk 0:01:17]}  h5 {[%clk 0:00:37]} 31. Bc3 {[%clk 0:01:12]}  g4 {[%clk 0:00:30]} 32. Nb4 {[%clk 0:01:06]}  Rg6 {[%clk 0:00:21]} 33. Nd3 {[%clk 0:01:04]}  Be3 {[%clk 0:00:22]} 34. Qe1 {[%clk 0:01:00]}  Re8 {[%clk 0:00:08]} 35. Qh4 {[%clk 0:00:58]}  Kh6 {[%clk 0:00:09]} 36. c5 {[%clk 0:00:31]}  Bxc5 {[%clk 0:00:06]} 37. Rc1 {[%clk 0:00:32]}  Be3 {[%clk 0:00:05]} 38. Bxe5 {[%clk 0:00:30]}  Qd8 {[%clk 0:00:02]} 39. Qxd8 {[%clk 0:00:28]}  Rxd8 {[%clk 0:00:03]} 40. Bxf4+ {[%clk 0:00:28]}  Bxf4 {[%clk 0:00:03]} 41. Nxf4 {[%clk 0:00:29]}  Rf6 {[%clk 0:00:03]} 42. g3 {[%clk 0:00:25]}  gxf3 {[%clk 0:00:02]} 43. Bxf3 {[%clk 0:00:26]}  Rc8 {[%clk 0:00:03]} 44. Re1 {[%clk 0:00:21]}  Rc3 {[%clk 0:00:02]} 45. Kg2 {[%clk 0:00:21]}  Rc2+ {[%clk 0:00:02]} 46. Kg1 {[%clk 0:00:21]}  Rf8 {[%clk 0:00:01]} 47. e5 {[%clk 0:00:21]}  Bb5 {[%clk 0:00:01]} 48. e6 {[%clk 0:00:21]} 1-0


[Site "https://www.chess.com"]

[Event "Titled Tuesday Blitz August 23 Late 2022"]
[White "Cruz, Cristhian"]
[Black "Kamsky, Gata"]
[WhiteFideId "3801969"]
[BlackFideId "2000024"]
[WhiteElo "2497"]
[BlackElo "2666"]
[Result "0-1"]
[Round "05"]
[TimeControl "180+1"]
[Date "2022.08.23"]
[WhiteClock "0:00:10"]
[BlackClock "0:00:40"]

1. d4 {[%clk 0:03:00]}  Nf6 {[%clk 0:02:57]} 2. c4 {[%clk 0:02:59]}  g6 {[%clk 0:02:57]} 3. Nc3 {[%clk 0:02:58]}  Bg7 {[%clk 0:02:57]} 4. e4 {[%clk 0:02:57]}  d6 {[%clk 0:02:58]} 5. Nf3 {[%clk 0:02:57]}  O-O {[%clk 0:02:57]} 6. Be2 {[%clk 0:02:57]}  e5 {[%clk 0:02:57]} 7. O-O {[%clk 0:02:57]}  Nc6 {[%clk 0:02:57]} 8. d5 {[%clk 0:02:57]}  Ne7 {[%clk 0:02:57]} 9. Be3 {[%clk 0:02:57]}  Ng4 {[%clk 0:02:55]} 10. Bd2 {[%clk 0:02:57]}  f5 {[%clk 0:02:49]} 11. a4 {[%clk 0:02:56]}  a5 {[%clk 0:02:46]} 12. c5 {[%clk 0:02:52]}  dxc5 {[%clk 0:02:35]} 13. Bc4 {[%clk 0:02:30]}  Kh8 {[%clk 0:02:31]} 14. Re1 {[%clk 0:02:25]}  f4 {[%clk 0:02:23]} 15. Nb5 {[%clk 0:02:07]}  c6 {[%clk 0:02:13]} 16. d6 {[%clk 0:02:06]}  cxb5 {[%clk 0:02:11]} 17. dxe7 {[%clk 0:02:06]}  Qxe7 {[%clk 0:02:11]} 18. axb5 {[%clk 0:02:06]}  b6 {[%clk 0:02:11]} 19. Bc3 {[%clk 0:02:05]}  Bb7 {[%clk 0:02:06]} 20. b3 {[%clk 0:02:03]}  Rad8 {[%clk 0:02:05]} 21. Qc2 {[%clk 0:02:02]}  Rd4 {[%clk 0:01:55]} 22. h3 {[%clk 0:01:45]}  Nf6 {[%clk 0:01:54]} 23. Bxd4 {[%clk 0:01:38]}  exd4 {[%clk 0:01:38]} 24. e5 {[%clk 0:01:27]}  Nd5 {[%clk 0:01:37]} 25. h4 {[%clk 0:01:07]}  Nb4 {[%clk 0:01:18]} 26. Qe2 {[%clk 0:01:06]}  Bxf3 {[%clk 0:01:08]} 27. gxf3 {[%clk 0:00:34]}  Qxh4 {[%clk 0:01:07]} 28. e6 {[%clk 0:00:34]}  d3 {[%clk 0:00:52]} 29. Qe4 {[%clk 0:00:29]}  Bxa1 {[%clk 0:00:49]} 30. Rxa1 {[%clk 0:00:27]}  Rf5 {[%clk 0:00:41]} 31. Qa8+ {[%clk 0:00:10]}  Kg7 {[%clk 0:00:39]} 32. Qb7+ {[%clk 0:00:10]}  Kh6 {[%clk 0:00:40]} 0-1


[Site "https://www.chess.com"]

[Event "Titled Tuesday Blitz August 23 Late 2022"]
[White "Djordjevic, Vuk"]
[Black "Theodorou, Nikolas"]
[WhiteFideId "902098"]
[BlackFideId "4262875"]
[WhiteElo "2456"]
[BlackElo "2484"]
[Result "0-1"]
[Round "05"]
[TimeControl "180+1"]
[Date "2022.08.23"]
[WhiteClock "0:00:02"]
[BlackClock "0:00:37"]

1. d4 {[%clk 0:03:00]}  Nf6 {[%clk 0:03:00]} 2. Bg5 {[%clk 0:03:01]}  d5 {[%clk 0:03:00]} 3. Bxf6 {[%clk 0:03:00]}  gxf6 {[%clk 0:03:01]} 4. e3 {[%clk 0:03:01]}  c5 {[%clk 0:03:01]} 5. dxc5 {[%clk 0:03:02]}  e6 {[%clk 0:03:01]} 6. Nf3 {[%clk 0:03:02]}  Nd7 {[%clk 0:03:00]} 7. Be2 {[%clk 0:02:55]}  Nxc5 {[%clk 0:02:58]} 8. O-O {[%clk 0:02:55]}  a6 {[%clk 0:02:50]} 9. Nbd2 {[%clk 0:02:39]}  b5 {[%clk 0:02:47]} 10. Nd4 {[%clk 0:02:39]}  Bb7 {[%clk 0:02:46]} 11. f4 {[%clk 0:02:37]}  Rg8 {[%clk 0:02:42]} 12. Bf3 {[%clk 0:02:10]}  Qb6 {[%clk 0:02:42]} 13. Qe2 {[%clk 0:01:56]}  O-O-O {[%clk 0:02:32]} 14. Bh5 {[%clk 0:01:52]}  Rg7 {[%clk 0:02:29]} 15. N2f3 {[%clk 0:01:32]}  Kb8 {[%clk 0:02:28]} 16. b3 {[%clk 0:01:18]}  Bd6 {[%clk 0:02:23]} 17. a4 {[%clk 0:01:15]}  Rdg8 {[%clk 0:02:21]} 18. g3 {[%clk 0:01:13]}  b4 {[%clk 0:02:21]} 19. Rac1 {[%clk 0:01:09]}  Ne4 {[%clk 0:02:20]} 20. Rfe1 {[%clk 0:00:50]}  h6 {[%clk 0:01:59]} 21. Qd3 {[%clk 0:00:32]}  f5 {[%clk 0:01:45]} 22. Ne5 {[%clk 0:00:26]}  Bxe5 {[%clk 0:01:41]} 23. fxe5 {[%clk 0:00:26]}  f4 {[%clk 0:01:40]} 24. g4 {[%clk 0:00:15]}  Rg5 {[%clk 0:01:14]} 25. Kf1 {[%clk 0:00:04]}  a5 {[%clk 0:01:03]} 26. exf4 {[%clk 0:00:04]}  Ba6 {[%clk 0:00:53]} 27. fxg5 {[%clk 0:00:04]}  Qxd4 {[%clk 0:00:49]} 28. Re2 {[%clk 0:00:01]}  Bxd3 {[%clk 0:00:48]} 29. cxd3 {[%clk 0:00:02]}  Qxd3 {[%clk 0:00:48]} 30. gxh6 {[%clk 0:00:02]}  Rh8 {[%clk 0:00:38]} 31. Rc2 {[%clk 0:00:01]}  Rxh6 {[%clk 0:00:37]} 32. Kg2 {[%clk 0:00:02]} 0-1


[Site "https://www.chess.com"]

[Event "Titled Tuesday Blitz August 23 Late 2022"]
[White "Ezat, Mohamed"]
[Black "Matinian, Nikita"]
[WhiteFideId "10600906"]
[BlackFideId "24129100"]
[WhiteElo "2386"]
[BlackElo "2422"]
[Result "0-1"]
[Round "05"]
[TimeControl "180+1"]
[Date "2022.08.23"]
[WhiteClock "0:00:12"]
[BlackClock "0:00:14"]

1. d4 {[%clk 0:03:00]}  g6 {[%clk 0:02:59]} 2. c4 {[%clk 0:03:00]}  Bg7 {[%clk 0:02:59]} 3. e4 {[%clk 0:03:00]}  d6 {[%clk 0:03:00]} 4. Nc3 {[%clk 0:03:00]}  Nc6 {[%clk 0:03:00]} 5. Be3 {[%clk 0:02:58]}  e5 {[%clk 0:02:59]} 6. d5 {[%clk 0:02:57]}  Nd4 {[%clk 0:02:53]} 7. Nge2 {[%clk 0:02:57]}  Nxe2 {[%clk 0:02:50]} 8. Bxe2 {[%clk 0:02:57]}  h5 {[%clk 0:02:47]} 9. c5 {[%clk 0:02:46]}  Bh6 {[%clk 0:02:43]} 10. Qd2 {[%clk 0:02:30]}  Bxe3 {[%clk 0:02:41]} 11. Qxe3 {[%clk 0:02:30]}  Nf6 {[%clk 0:02:35]} 12. O-O {[%clk 0:02:28]}  Ng4 {[%clk 0:02:34]} 13. Qg3 {[%clk 0:02:24]}  h4 {[%clk 0:02:30]} 14. Qd3 {[%clk 0:02:23]}  h3 {[%clk 0:02:26]} 15. g3 {[%clk 0:02:22]}  a6 {[%clk 0:02:13]} 16. f3 {[%clk 0:02:19]}  Nf6 {[%clk 0:02:09]} 17. cxd6 {[%clk 0:02:17]}  cxd6 {[%clk 0:02:09]} 18. Qe3 {[%clk 0:02:17]}  O-O {[%clk 0:01:48]} 19. Rac1 {[%clk 0:02:11]}  Bd7 {[%clk 0:01:48]} 20. Nb1 {[%clk 0:02:05]}  Re8 {[%clk 0:01:45]} 21. Nd2 {[%clk 0:02:04]}  b5 {[%clk 0:01:45]} 22. Rc2 {[%clk 0:01:54]}  Kg7 {[%clk 0:01:30]} 23. Rfc1 {[%clk 0:01:53]}  Nh7 {[%clk 0:01:17]} 24. Rc7 {[%clk 0:01:50]}  Rc8 {[%clk 0:01:09]} 25. Rxc8 {[%clk 0:01:45]}  Bxc8 {[%clk 0:01:10]} 26. Nb3 {[%clk 0:01:25]}  f5 {[%clk 0:01:10]} 27. Rc6 {[%clk 0:01:18]}  Rf8 {[%clk 0:00:27]} 28. Qa7+ {[%clk 0:01:07]}  Kh6 {[%clk 0:00:25]} 29. Nd2 {[%clk 0:00:39]}  Qg5 {[%clk 0:00:21]} 30. Nf1 {[%clk 0:00:29]}  fxe4 {[%clk 0:00:22]} 31. fxe4 {[%clk 0:00:28]}  Bg4 {[%clk 0:00:20]} 32. Bxg4 {[%clk 0:00:20]}  Qxg4 {[%clk 0:00:20]} 33. Qe3+ {[%clk 0:00:20]}  Ng5 {[%clk 0:00:20]} 34. Rc2 {[%clk 0:00:19]}  Rf3 {[%clk 0:00:20]} 35. Qc1 {[%clk 0:00:18]}  Qxe4 {[%clk 0:00:19]} 36. Qd2 {[%clk 0:00:12]}  Rxf1+ {[%clk 0:00:17]} 37. Kxf1 {[%clk 0:00:12]}  Qh1+ {[%clk 0:00:17]} 38. Ke2 {[%clk 0:00:11]}  Qxh2+ {[%clk 0:00:17]} 39. Kd3 {[%clk 0:00:11]}  Qxg3+ {[%clk 0:00:14]} 40. Qe3 {[%clk 0:00:12]}  e4+ {[%clk 0:00:14]} 41. Kd4 {[%clk 0:00:12]}  Qe5# {[%clk 0:00:14]} 0-1


[Site "https://www.chess.com"]

[Event "Titled Tuesday Blitz August 23 Late 2022"]
[White "Fawzy, Adham"]
[Black "Dilanyan, Grigor"]
[WhiteFideId "10613129"]
[BlackFideId "13303570"]
[WhiteElo "2541"]
[BlackElo "2264"]
[Result "1-0"]
[Round "05"]
[TimeControl "180+1"]
[Date "2022.08.23"]
[WhiteClock "0:00:11"]
[BlackClock "0:00:13"]

1. e4 {[%clk 0:03:00]}  e5 {[%clk 0:02:55]} 2. Nf3 {[%clk 0:03:00]}  Nc6 {[%clk 0:02:53]} 3. Bc4 {[%clk 0:03:01]}  Nf6 {[%clk 0:02:48]} 4. Ng5 {[%clk 0:02:59]}  d5 {[%clk 0:02:45]} 5. exd5 {[%clk 0:03:00]}  Na5 {[%clk 0:02:43]} 6. Bb5+ {[%clk 0:03:00]}  c6 {[%clk 0:02:43]} 7. dxc6 {[%clk 0:03:01]}  bxc6 {[%clk 0:02:44]} 8. Bd3 {[%clk 0:03:01]}  Nd5 {[%clk 0:02:26]} 9. Nf3 {[%clk 0:03:00]}  Bd6 {[%clk 0:02:11]} 10. O-O {[%clk 0:02:58]}  Nf4 {[%clk 0:02:11]} 11. Re1 {[%clk 0:02:55]}  Nxd3 {[%clk 0:02:09]} 12. cxd3 {[%clk 0:02:56]}  O-O {[%clk 0:01:46]} 13. Nc3 {[%clk 0:02:52]}  c5 {[%clk 0:01:40]} 14. b3 {[%clk 0:02:48]}  Nc6 {[%clk 0:01:34]} 15. Ba3 {[%clk 0:02:46]}  Bg4 {[%clk 0:01:25]} 16. h3 {[%clk 0:02:39]}  Bh5 {[%clk 0:01:25]} 17. Ne4 {[%clk 0:02:39]}  Nd4 {[%clk 0:01:25]} 18. g4 {[%clk 0:02:34]}  Bg6 {[%clk 0:01:22]} 19. Rc1 {[%clk 0:01:56]}  Rc8 {[%clk 0:01:14]} 20. Nxd4 {[%clk 0:01:50]}  exd4 {[%clk 0:01:09]} 21. Qf3 {[%clk 0:01:50]}  Bxe4 {[%clk 0:00:52]} 22. dxe4 {[%clk 0:01:32]}  Qa5 {[%clk 0:00:53]} 23. e5 {[%clk 0:01:33]}  Be7 {[%clk 0:00:50]} 24. Qb7 {[%clk 0:00:49]}  Bh4 {[%clk 0:00:35]} 25. Bb2 {[%clk 0:00:23]}  Qxd2 {[%clk 0:00:33]} 26. Rf1 {[%clk 0:00:15]}  Qxb2 {[%clk 0:00:31]} 27. Qf3 {[%clk 0:00:15]}  Qd2 {[%clk 0:00:25]} 28. Rce1 {[%clk 0:00:15]}  Qg5 {[%clk 0:00:24]} 29. Re4 {[%clk 0:00:14]}  Rcd8 {[%clk 0:00:24]} 30. Rd1 {[%clk 0:00:14]}  Rfe8 {[%clk 0:00:23]} 31. Qg2 {[%clk 0:00:14]}  Qg6 {[%clk 0:00:19]} 32. f4 {[%clk 0:00:14]}  f5 {[%clk 0:00:18]} 33. Re2 {[%clk 0:00:13]}  fxg4 {[%clk 0:00:18]} 34. hxg4 {[%clk 0:00:14]}  h5 {[%clk 0:00:18]} 35. gxh5 {[%clk 0:00:12]}  Qxg2+ {[%clk 0:00:18]} 36. Kxg2 {[%clk 0:00:13]}  Kh7 {[%clk 0:00:19]} 37. Kf3 {[%clk 0:00:13]}  Rf8 {[%clk 0:00:17]} 38. Ke4 {[%clk 0:00:13]}  Be7 {[%clk 0:00:17]} 39. f5 {[%clk 0:00:14]}  Rf7 {[%clk 0:00:16]} 40. Rg2 {[%clk 0:00:13]}  Rdf8 {[%clk 0:00:15]} 41. Rf1 {[%clk 0:00:14]}  Bd8 {[%clk 0:00:14]} 42. Rc2 {[%clk 0:00:14]}  Bb6 {[%clk 0:00:14]} 43. a4 {[%clk 0:00:14]}  a5 {[%clk 0:00:14]} 44. Rg2 {[%clk 0:00:12]}  Re8 {[%clk 0:00:14]} 45. Rfg1 {[%clk 0:00:12]}  Rfe7 {[%clk 0:00:14]} 46. e6 {[%clk 0:00:12]}  Rf8 {[%clk 0:00:14]} 47. Rg6 {[%clk 0:00:11]}  Rf6 {[%clk 0:00:13]} 48. h6 {[%clk 0:00:10]}  Rxg6 {[%clk 0:00:13]} 49. fxg6+ {[%clk 0:00:10]}  Kxh6 {[%clk 0:00:13]} 50. Kf5 {[%clk 0:00:11]} 1-0


[Site "https://www.chess.com"]

[Event "Titled Tuesday Blitz August 23 Late 2022"]
[White "Goncalves, Davi Sulzbacher"]
[Black "Livaic, Leon"]
[WhiteFideId "2154510"]
[BlackFideId "14531534"]
[WhiteElo "2107"]
[BlackElo "2540"]
[Result "0-1"]
[Round "05"]
[TimeControl "180+1"]
[Date "2022.08.23"]
[WhiteClock "0:00:22"]
[BlackClock "0:00:25"]

1. Nf3 {[%clk 0:03:00]}  Nf6 {[%clk 0:02:59]} 2. g3 {[%clk 0:03:01]}  b6 {[%clk 0:03:00]} 3. Bg2 {[%clk 0:03:02]}  Bb7 {[%clk 0:03:00]} 4. O-O {[%clk 0:03:02]}  c5 {[%clk 0:03:00]} 5. c4 {[%clk 0:03:01]}  g6 {[%clk 0:03:00]} 6. b3 {[%clk 0:03:01]}  Bg7 {[%clk 0:03:01]} 7. Bb2 {[%clk 0:03:02]}  O-O {[%clk 0:03:01]} 8. d3 {[%clk 0:03:02]}  d5 {[%clk 0:03:01]} 9. cxd5 {[%clk 0:03:01]}  Qxd5 {[%clk 0:02:59]} 10. Nc3 {[%clk 0:03:00]}  Qd7 {[%clk 0:02:56]} 11. Ne5 {[%clk 0:02:56]}  Qc8 {[%clk 0:02:55]} 12. e4 {[%clk 0:02:52]}  Rd8 {[%clk 0:02:48]} 13. Qc2 {[%clk 0:02:44]}  Nfd7 {[%clk 0:02:31]} 14. Nd5 {[%clk 0:02:07]}  Bxd5 {[%clk 0:02:30]} 15. Nxd7 {[%clk 0:02:07]}  Bxb3 {[%clk 0:02:06]} 16. axb3 {[%clk 0:01:57]}  Qxd7 {[%clk 0:02:00]} 17. e5 {[%clk 0:01:33]}  Nc6 {[%clk 0:01:59]} 18. d4 {[%clk 0:01:32]}  Rac8 {[%clk 0:01:39]} 19. dxc5 {[%clk 0:00:50]}  bxc5 {[%clk 0:00:58]} 20. Qxc5 {[%clk 0:00:44]}  Nxe5 {[%clk 0:00:53]} 21. Qxa7 {[%clk 0:00:43]}  Qxa7 {[%clk 0:00:44]} 22. Rxa7 {[%clk 0:00:43]}  Nc6 {[%clk 0:00:37]} 23. Bxc6 {[%clk 0:00:40]}  Bxb2 {[%clk 0:00:37]} 24. Bb5 {[%clk 0:00:35]}  e6 {[%clk 0:00:35]} 25. Bc4 {[%clk 0:00:32]}  Rd2 {[%clk 0:00:33]} 26. Kg2 {[%clk 0:00:29]}  Rcd8 {[%clk 0:00:29]} 27. Re1 {[%clk 0:00:25]}  Bd4 {[%clk 0:00:25]} 28. Re2 {[%clk 0:00:25]}  Rxe2 {[%clk 0:00:25]} 29. Bxe2 {[%clk 0:00:22]}  Bxa7 {[%clk 0:00:25]} 0-1


[Site "https://www.chess.com"]

[Event "Titled Tuesday Blitz August 23 Late 2022"]
[White "Harvey, Marcus R"]
[Black "Arias, Juan Cruz"]
[WhiteFideId "400092"]
[BlackFideId "118540"]
[WhiteElo "2485"]
[BlackElo "2091"]
[Result "1-0"]
[Round "05"]
[TimeControl "180+1"]
[Date "2022.08.23"]
[WhiteClock "0:01:28"]
[BlackClock "0:00:40"]

1. c4 {[%clk 0:03:00]}  e5 {[%clk 0:03:00]} 2. Nc3 {[%clk 0:03:00]}  Nf6 {[%clk 0:03:00]} 3. Nf3 {[%clk 0:03:00]}  Nc6 {[%clk 0:02:58]} 4. e4 {[%clk 0:02:54]}  Bc5 {[%clk 0:02:50]} 5. Nxe5 {[%clk 0:02:53]}  Nxe5 {[%clk 0:02:44]} 6. d4 {[%clk 0:02:53]}  Bb4 {[%clk 0:02:44]} 7. dxe5 {[%clk 0:02:52]}  Nxe4 {[%clk 0:02:45]} 8. Qf3 {[%clk 0:02:52]}  Nxc3 {[%clk 0:02:37]} 9. bxc3 {[%clk 0:02:36]}  Bc5 {[%clk 0:02:35]} 10. Bd3 {[%clk 0:02:30]}  a5 {[%clk 0:02:08]} 11. Qg3 {[%clk 0:02:27]}  Kf8 {[%clk 0:02:01]} 12. h4 {[%clk 0:02:14]}  h5 {[%clk 0:01:59]} 13. Bg5 {[%clk 0:02:10]}  Qe8 {[%clk 0:01:59]} 14. O-O {[%clk 0:02:08]}  Ra6 {[%clk 0:01:58]} 15. Rae1 {[%clk 0:02:06]}  Re6 {[%clk 0:01:37]} 16. Bf5 {[%clk 0:02:01]}  Ra6 {[%clk 0:01:27]} 17. Bf6 {[%clk 0:02:00]}  Rg8 {[%clk 0:01:15]} 18. Bh7 {[%clk 0:02:00]}  g6 {[%clk 0:01:15]} 19. Qg5 {[%clk 0:01:50]}  Qe6 {[%clk 0:00:51]} 20. Qh6+ {[%clk 0:01:40]}  Ke8 {[%clk 0:00:51]} 21. Bxg8 {[%clk 0:01:40]}  b6 {[%clk 0:00:46]} 22. Qh8 {[%clk 0:01:34]}  Bb7 {[%clk 0:00:41]} 23. Bh7+ {[%clk 0:01:29]}  Bf8 {[%clk 0:00:40]} 24. Bg7 {[%clk 0:01:29]}  Qg4 {[%clk 0:00:40]} 25. Qxf8# {[%clk 0:01:28]} 1-0


[Site "https://www.chess.com"]